bitfinex-derivatives/quotes_ETHF0:USTF0_20250520
["timestamp","ask_amount","ask_price","bid_price","bid_amount"]
[1747768878967,0.00606538,2472.7,2472.6,2.58135]
[1747768881276,0.00606538,2472.7,2472.6,2.90479654]
[1747768882478,2.45947,2473.3,2473.2,0.80838]
[1747768882675,0.80838,2473.2,2473.1,14.5854]
[1747768882874,0.80838,2473.2,2473.1,0.8084]
[1747768883075,0.80838,2473.2,2473.1,14.5854]
[1747768883278,0.80838,2473.2,2473.1,16.35817]
[1747768883479,0.80838,2473.2,2473.1,14.5854]
[1747768883680,0.80838,2473.2,2473.1,16.35817]
[1747768884084,3.2724,2473.3,2473.2,0.80838]
[1747768884280,0.80832,2473.5,2473.4,0.80829]
[1747768884776,0.80832,2473.5,2473.4,2.58106]
[1747768885179,0.80832,2473.5,2473.4,0.80829]
[1747768885883,0.80832,2473.4,2473.3,0.80833]
[1747768886087,0.80832,2473.4,2473.3,14.58533]
[1747768886286,0.80832,2473.4,2473.3,16.3581]
[1747768887483,0.80832,2473.4,2473.3,15.54977]
[1747768887783,0.80832,2473.4,2473.3,16.31212]
[1747768888680,2.82987,2473.4,2473.3,15.50377]
[1747768889192,2.82987,2473.4,2473.3,13.731]
[1747768889585,2.82987,2473.4,2473.3,15.50377]
[1747768889893,0.80838,2473.2,2473.1,0.80839]
[1747768890190,0.80838,2473.2,2473.1,14.53939]
[1747768890487,1.7068,2473.6,2473.1,17.52476]
[1747768890683,0.80835,2473.4,2473.3,0.80833]
[1747768891482,0.80835,2473.4,2473.3,2.5811]
[1747768891678,2.8299,2473.4,2473.3,2.5811]
[1747768891882,2.8299,2473.4,2473.2,3.2078]
[1747768891883,0.80835,2473.3,2473.2,4.01617]
[1747768892084,0.80845,2473.1,2473.0,0.80843]
[1747768892289,2.830245,2473.1,2473.0,1.77277]
[1747768893381,3.73921,2473.3,2473.2,0.80838]
[1747768893382,1.7183,2473.3,2473.2,0.80838]
[1747768893596,4.548365,2473.3,2473.2,15.50277]
[1747768893889,4.548365,2473.3,2473.2,16.31115]
[1747768894092,4.548365,2473.3,2473.2,15.50277]
[1747768894389,4.548365,2473.3,2473.2,1.77277]
[1747768895496,2.830105,2473.3,2473.2,2.5812]
[1747768895788,2.830105,2473.3,2473.2,1.77277]
[1747768895986,4.441905,2473.3,2473.2,1.77277]
[1747768898688,4.441905,2473.3,2473.2,2.5812]
[1747768898901,4.441905,2473.3,2473.2,1.77277]
[1747768899791,4.441905,2473.3,2473.2,2.5812]
[1747768900895,2.830105,2473.3,2473.2,2.5812]
[1747768901192,2.021715,2473.3,2473.2,2.5812]
[1747768901989,2.021715,2473.3,2473.2,2.90460654]
[1747768902292,0.80837,2473.4,2473.3,0.80839]
[1747768902598,4.43876,2473.4,2473.3,2.58116]
[1747768903097,3.63039,2473.4,2473.3,2.58116]
[1747768903696,3.63039,2473.4,2473.3,2.90456654]
[1747768904203,4.43875,2473.4,2473.3,2.09617654]
[1747768904393,4.43875,2473.4,2473.3,2.90456654]
[1747768905991,4.43875,2473.4,2473.3,2.09617654]
[1747768906394,4.43875,2473.4,2473.3,2.90456654]
[1747768907100,4.43875,2473.4,2473.3,2.09617654]
[1747768907397,4.6749488,2473.4,2473.3,2.90456654]
[1747768907597,4.67500621,2473.4,2473.3,2.90456654]
[1747768907794,4.67496621,2473.4,2473.3,2.09617654]
[1747768907990,4.6749657,2473.4,2473.3,2.09617654]
[1747768908293,4.6749657,2473.4,2473.3,2.90456654]
[1747768908501,4.6749657,2473.4,2473.3,2.09617654]
[1747768909192,4.6749657,2473.4,2473.3,1.77277]
[1747768909593,4.75983047,2473.4,2473.3,1.77277]
[1747768909994,4.75983047,2473.4,2473.3,2.58116]
[1747768910195,3.71521477,2473.4,2473.3,2.58116]
[1747768910892,0.89322477,2473.4,2473.3,4.22086]
[1747768911100,1.00027744,2473.6,2473.5,0.80833]
[1747768911296,1.00027744,2473.6,2473.5,19.5189]
[1747768911498,3.02166244,2473.6,2473.5,19.5189]
[1747768912202,3.02166244,2473.6,2473.5,20.22625033]
[1747768913400,1.31164081,2473.9,2473.8,0.80823]
[1747768913697,3.33290581,2473.9,2473.8,15.50277]
[1747768913897,4.14110581,2473.9,2473.8,16.63434244]
[1747768914199,2.829465,2473.9,2473.8,16.63434244]
[1747768915297,2.829465,2473.9,2473.8,2.90434244]
[1747768915597,2.829465,2473.9,2473.8,16.63234244]
[1747768916098,2.82934,2473.9,2473.8,16.63234244]
[1747768917903,2.02114,2473.9,2473.8,16.63234244]
[1747768918802,2.02114,2473.9,2473.8,18.24804244]
[1747768919301,2.82934,2473.9,2473.8,15.82411244]
[1747768919502,2.02114,2473.9,2473.8,16.63234244]
[1747768920405,1.6067,2474.2,2474.1,0.80813]
[1747768920701,1.627,2474.3,2474.2,0.8081]
[1747768920904,3.647855,2474.3,2474.2,2.58087]
[1747768921593,3.647855,2474.3,2474.2,16.25587]
[1747768922002,4.455925,2474.3,2474.2,16.25587]
[1747768922403,2.35709095,2474.6,2474.5,0.808]
[1747768922594,2.35709095,2474.6,2474.5,5.78857]
[1747768922902,1.31164081,2474.7,2474.6,0.80797]
[1747768923200,1.31164081,2474.7,2474.6,19.59794]
[1747768923398,1.31164081,2474.7,2474.6,21.30034]
[1747768923897,1.31164081,2474.9,2474.8,0.8079]
[1747768924204,0.80794,2474.7,2474.6,2.77015676]
[1747768924393,0.80794,2474.7,2474.6,0.32318676]
[1747768924592,4.01574,2474.7,2474.6,2.09595676]
[1747768924798,11.12109477,2474.7,2474.6,2.09595676]
[1747768924995,0.8081,2474.2,2474.1,0.57510122]
[1747768925304,4.0159,2474.2,2474.1,1.22e-06]
[1747768925502,11.27264936,2474.2,2474.1,1.22e-06]
[1747768926005,2.02034,2474.1,2473.6,0.00606538]
[1747768926208,0.80826,2473.7,2473.6,0.00606538]
[1747768926706,6.037365,2473.7,2473.6,0.00606538]
[1747768926898,2.829565,2473.7,2473.6,0.00606538]
[1747768929907,6.037365,2473.7,2473.6,0.00606538]
[1747768930807,6.27342396,2473.7,2473.6,0.00606538]
[1747768931202,6.037365,2473.7,2473.6,0.00606538]
[1747768932607,2.829565,2473.7,2473.6,0.00606538]
[1747768933107,6.037365,2473.7,2473.6,0.00606538]
[1747768934504,1.7297,2474.0,2473.6,0.00606538]
[1747768934703,0.80818,2474.0,2473.9,0.80818]
[1747768935415,2.98984081,2474.2,2473.9,3.75456]
[1747768935606,0.80814,2474.1,2474.0,14.48414]
[1747768936109,0.80814,2474.1,2474.0,16.50512]
[1747768936513,0.80814,2474.1,2474.0,18.23862]
[1747768938706,0.80812,2474.2,2474.1,0.80811]
[1747768938904,5.2281,2474.2,2473.7,0.28779847]
[1747768939110,0.80817,2474.0,2473.9,1.682]
[1747768939606,2.82923,2474.0,2473.9,1.682]
[1747768940309,2.82923,2474.0,2473.5,20.1828]
[1747768940310,0.80826,2473.7,2473.5,20.47059847]
[1747768940512,0.80826,2473.7,2473.6,1.68806538]
[1747768940713,0.80826,2473.7,2473.6,3.70937038]
[1747768941010,0.80826,2473.7,2473.6,1.68806538]
[1747768941209,2.829565,2473.7,2473.6,0.00606538]
[1747768941813,4.409865,2473.7,2473.6,0.00606538]
[1747768949718,23.219605,2473.7,2473.0,0.28779847]
[1747768949914,4.04248,2473.0,2472.2,0.88013081]
[1747768950209,3.2078,2472.3,2472.2,0.88013081]
[1747768950415,3.2078,2472.6,2472.2,0.88013081]
[1747768950715,1.5971301,2472.7,2472.3,15.2875]
[1747768951013,0.80866,2472.5,2472.3,16.9869]
[1747768951214,0.80866,2472.5,2472.3,24.009145]
[1747768951416,0.80867,2472.5,2472.3,10.389145]
[1747768951617,0.80867,2472.5,2472.4,13.62]
[1747768951805,0.00606538,2472.6,2472.4,15.2875]
[1747768952005,0.80866,2472.5,2472.4,3.689745]
[1747768952210,0.80866,2472.5,2472.4,17.309745]
[1747768952418,0.80866,2472.5,2472.4,3.689745]
[1747768952618,0.80866,2472.5,2472.4,17.309745]
[1747768953717,0.80872,2472.3,2472.2,13.62706538]
[1747768953914,4.01652,2472.3,2472.2,0.00606538]
[1747768954115,6.03897,2472.3,2472.2,0.00606538]
[1747768954315,7.63337,2472.3,2472.2,0.00606538]
[1747768954516,7.63337,2472.3,2472.2,5.38e-06]
[1747768954822,12.63337,2472.3,2472.2,5.38e-06]
[1747768955922,7.63337,2472.3,2472.2,5.38e-06]
[1747768957021,12.63337,2472.3,2472.2,5.38e-06]
[1747768957314,7.63337,2472.3,2472.2,5.38e-06]
[1747768960823,5.61092,2472.3,2472.2,2.02245538]
[1747768961020,7.63337,2472.3,2472.2,5.38e-06]
[1747768964124,5.61092,2472.3,2472.2,5.38e-06]
[1747768964313,7.18262,2472.3,2472.2,5.38e-06]
[1747768965725,4.01652,2472.3,2472.2,5.38e-06]
[1747768966826,0.80872,2472.3,2472.2,0.80874538]
[1747768967027,0.08486477,2472.5,2472.2,3.20780538]
[1747768967329,0.80869,2472.4,2472.3,19.52372]
[1747768967728,0.80869,2472.4,2472.3,18.715]
[1747768968120,0.80869,2472.4,2472.3,5.088]
[1747768968320,4.01649,2472.4,2472.3,18.714]
[1747768968530,0.80869,2472.4,2472.3,18.714]
[1747768969229,0.80869,2472.4,2472.3,20.73636499]
[1747768970429,0.89355477,2472.4,2472.3,20.73636499]
[1747768971130,4.10135477,2472.4,2472.3,20.73636499]
[1747768971324,0.80872,2472.3,2472.2,5.38e-06]
[1747768971518,2.56892,2472.3,2472.2,5.38e-06]
[1747768971924,2.56892,2472.3,2472.2,2.02245538]
[1747768972227,0.80872,2472.3,2472.2,2.02245538]
[1747768972727,0.80872,2472.3,2472.2,2.83120538]
[1747768972935,0.08486477,2472.4,2472.3,0.80872]
[1747768973228,0.89355477,2472.4,2472.3,4.29832]
[1747768973426,0.08486477,2472.4,2472.3,6.32068499]
[1747768973827,0.89355477,2472.4,2472.3,6.32068499]
[1747768974230,0.08486477,2472.4,2472.3,6.32068499]
[1747768974733,0.08486477,2472.4,2472.3,8.05958499]
[1747768974932,0.08486477,2472.4,2472.3,13.05958499]
[1747768975833,0.89355477,2472.4,2472.3,8.05958499]
[1747768976037,0.08486477,2472.4,2472.3,26.68558499]
[1747768976333,0.89355477,2472.4,2472.3,26.68558499]
[1747768976636,0.08486477,2472.4,2472.3,26.68558499]
[1747768978237,0.00606538,2472.6,2472.5,0.80866]
[1747768978437,0.00606538,2472.6,2472.5,2.830865]
[1747768978632,3.2078,2473.0,2472.9,0.80852]
[1747768978835,3.2078,2473.0,2472.9,14.43352]
[1747768979035,3.2078,2473.0,2472.9,16.455395]
[1747768979426,4.01629,2473.0,2472.9,16.455395]
[1747768979935,4.01629,2473.0,2472.9,15.611875]
[1747768980134,0.80856,2472.8,2472.7,0.38377884]
[1747768980536,2.8306,2472.8,2472.7,0.38377884]
[1747768981036,4.5356,2472.8,2472.7,0.38377884]
[1747768981836,0.80859,2472.7,2472.6,13.589]
[1747768982035,5.72139,2472.7,2472.6,13.589]
[1747768982234,7.74351,2472.7,2472.6,13.589]
[1747768983638,0.89355477,2472.4,2472.3,5.2388]
[1747768983944,0.89355477,2472.4,2472.3,18.8288]
[1747768984145,0.89355477,2472.4,2472.3,20.85116499]
[1747768984529,5.31502977,2472.4,2472.2,5.38e-06]
[1747768984734,2.44022,2472.3,2472.2,5.38e-06]
[1747768984938,4.11422,2472.3,2472.2,5.38e-06]
[1747768985138,11.13667,2472.3,2472.2,5.38e-06]
[1747768985842,11.37196218,2472.3,2472.2,5.38e-06]
[1747768986440,6.13667,2472.3,2472.2,5.38e-06]
[1747768986644,11.37188084,2472.3,2472.2,5.38e-06]
[1747768986832,11.3718876,2472.3,2472.2,5.38e-06]
[1747768987643,3.2078,2472.4,2472.2,15.61345538]
[1747768987840,3.2078,2472.4,2472.3,0.80872]
[1747768988042,3.2078,2472.4,2472.3,2.56692]
[1747768988237,3.2078,2472.4,2472.3,6.24538499]
[1747768988441,1.5971301,2472.5,2472.4,0.80869]
[1747768988740,1.5971301,2472.5,2472.4,4.589175]
[1747768989045,4.08696937,2472.9,2472.5,2.02164]
[1747768989239,4.37540574,2472.9,2472.8,0.80856]
[1747768989538,1.2867862,2472.9,2472.8,0.80856]
[1747768989744,1.2867862,2472.9,2472.8,7.83052]
[1747768990140,1.2867862,2472.9,2472.8,16.42052]
[1747768990340,1.2867862,2472.9,2472.8,21.42052]
[1747768990753,1.67262638,2473.1,2473.0,0.80849]
[1747768991245,1.67262638,2473.1,2473.0,2.830285]
[1747768991446,1.67262638,2473.1,2473.0,4.556485]
[1747768992149,1.67262638,2473.1,2473.0,9.556485]
[1747768992542,0.00606,2473.2,2473.0,9.556485]
[1747768992543,0.00606,2473.2,2473.1,0.80846]
[1747768993041,0.00606,2473.2,2473.1,7.830175]
[1747768994352,0.00606,2473.2,2473.1,8.15356429]
[1747768994544,4.01605,2473.8,2473.7,0.80826]
[1747768994742,4.01605,2473.8,2473.7,14.39726]
[1747768994942,4.01605,2473.8,2473.7,16.418485]
[1747768995846,1.7523,2474.0,2473.8,0.8082]
[1747768996047,0.80821,2473.9,2473.8,0.8082]
[1747768996452,2.56049,2474.0,2473.9,0.8082]
[1747768996650,4.2076498,2474.1,2474.0,0.80817]
[1747768996843,4.8941,2474.4,2474.3,0.80807]
[1747768997043,4.8941,2474.4,2474.3,14.39607]
[1747768997345,5.70215,2474.4,2474.3,15.608735]
[1747768997653,0.9998498,2474.5,2474.4,0.80803]
[1747768997846,0.9998498,2474.5,2474.4,2.51813]
[1747768998048,0.9998498,2474.5,2474.4,4.53878]
[1747768998348,1.8078498,2474.5,2474.4,4.53878]
[1747768998847,0.9998498,2474.5,2474.4,4.53878]
[1747768999238,1.8078498,2474.5,2474.4,4.53878]
[1747768999941,1.89271457,2474.5,2474.4,4.53878]
[1747769000853,0.80807,2474.3,2474.2,0.32321329]
[1747769001054,0.80807,2474.3,2474.2,13.90821329]
[1747769001251,0.80807,2474.3,2474.2,16.73712829]
[1747769001554,4.041015,2474.3,2474.0,0.32321329]
[1747769001759,4.01593,2474.1,2474.0,0.32321329]
[1747769002149,3.27371,2474.1,2474.0,16.67045329]
[1747769002350,4.31456,2475.0,2474.9,0.80787]
[1747769002555,1.7698,2475.0,2474.9,16.34694]
[1747769002863,2.54461,2475.4,2475.3,0.80774]
[1747769003059,2.54461,2475.4,2475.3,16.34681]
[1747769003060,1.7369,2475.4,2475.3,16.34681]
[1747769003359,2.54461,2475.4,2475.3,16.34681]
[1747769003764,0.80771,2475.4,2475.3,15.53907]
[1747769004161,2.57751,2475.4,2475.3,17.26727]
[1747769004558,2.57751,2475.4,2475.3,1.95507]
[1747769004759,2.57751,2475.4,2475.3,15.53607]
[1747769005256,0.9998498,2475.6,2475.3,1.95507]
[1747769005461,0.9998498,2475.6,2475.5,5.97055]
[1747769005663,0.9998498,2475.6,2475.5,33.18955]
[1747769005867,0.9998498,2475.6,2475.5,7.71585]
[1747769006168,0.9998498,2475.6,2475.5,26.29685]
[1747769006556,0.80759,2475.8,2475.6,0.80762]
[1747769006761,0.80759,2475.8,2475.7,1.7453]
[1747769006960,1.7289,2476.2,2476.0,0.8075]
[1747769007164,2.53635,2476.2,2476.1,15.53307]
[1747769007362,4.3936498,2476.6,2476.5,0.80735]
[1747769007563,0.9998498,2476.6,2476.5,16.34042]
[1747769008057,5.44257,2477.5,2476.5,16.34042]
[1747769008058,2.01737,2477.8,2476.7,3.2078]
[1747769008258,1.6286,2477.8,2477.5,1.95507]
[1747769008470,1.6286,2477.6,2477.1,5.16287]
[1747769008663,0.80712,2477.2,2477.1,5.16287]
[1747769008970,0.80715,2477.1,2477.0,0.00606538]
[1747769009472,0.80715,2477.1,2477.0,1.96113538]
[1747769010569,7.82568,2477.1,2477.0,0.00606538]
[1747769010766,2.82568,2477.1,2477.0,0.00606538]
[1747769010962,3.64629,2477.4,2477.0,1.96113538]
[1747769010963,1.6286,2477.4,2477.0,1.96113538]
[1747769011270,2.43566,2477.4,2477.3,1.95507]
[1747769011560,1.6286,2477.4,2477.3,15.49607]
[1747769011875,2.01724,2477.9,2477.3,15.49607]
[1747769012072,0.80699,2477.6,2477.5,3.2078]
[1747769012478,0.80699,2477.6,2477.5,5.16287]
[1747769012768,1.6297,2477.7,2477.5,5.96987]
[1747769012769,0.80697,2477.7,2477.5,5.96987]
[1747769013069,2.01672,2478.6,2477.5,48.9208]
[1747769013370,2.01669,2478.6,2477.5,40.713]
[1747769013572,0.80693,2477.8,2477.7,1.95507]
[1747769014070,2.82489,2477.8,2477.7,1.95507]
[1747769014262,0.80696,2477.7,2477.6,3.2078]
[1747769014461,2.43106,2477.7,2477.6,16.7458]
[1747769014777,2.43106,2477.7,2477.6,18.70087]
[1747769015176,2.51592477,2477.7,2477.6,5.16287]
[1747769015366,4.53396477,2477.7,2477.6,16.7458]
[1747769015668,0.80699,2477.6,2477.5,40.713]
[1747769015872,0.80709,2477.3,2477.2,3.2078]
[1747769016172,0.80709,2477.3,2477.2,16.7458]
[1747769016373,0.80709,2477.3,2477.2,18.70087]
[1747769016772,1.6241,2477.6,2477.2,19.50797]
[1747769016984,0.80702,2477.5,2477.4,1.95507]
[1747769017167,0.80702,2477.5,2477.2,16.7458]
[1747769017168,0.08486477,2477.7,2477.5,1.95507]
[1747769017373,0.08486477,2477.7,2477.6,19.50486]
[1747769017869,0.08486477,2477.7,2477.6,24.50486]
[1747769019082,4.77e-06,2477.7,2477.6,24.50486]
[1747769019577,4.77e-06,2477.7,2477.6,24.50286]
[1747769020572,4.77e-06,2477.7,2477.6,19.50286]
[1747769021878,4.77e-06,2477.7,2477.6,5.96986]
[1747769022074,4.77e-06,2477.7,2477.6,19.50286]
[1747769022275,1.71000477,2477.7,2477.6,19.50286]
[1747769022574,0.80704,2477.5,2477.4,0.80704]
[1747769022779,0.80704,2477.5,2477.4,17.54584]
[1747769022977,0.80704,2477.5,2477.4,5.16287]
[1747769023171,0.80704,2477.5,2477.4,18.69387]
[1747769023574,3.52066409,2479.6,2477.4,22.7388]
[1747769023776,0.80663,2478.7,2478.6,5.16287]
[1747769024074,0.80663,2478.7,2478.6,3.2078]
[1747769024381,0.80663,2478.7,2478.5,15.48607]
[1747769024382,2.01651,2478.8,2478.5,16.7388]
[1747769024573,2.01651,2478.8,2478.5,3.2078]
[1747769024574,0.80667,2478.6,2478.5,3.2078]
[1747769025180,0.80673,2478.4,2478.3,0.00605266]
[1747769025475,0.80673,2478.4,2478.3,16.29888266]
[1747769025672,2.82420001,2478.4,2478.3,16.29888266]
[1747769025979,2.82420001,2478.4,2478.3,15.49212266]
[1747769026380,2.82420001,2478.4,2478.3,16.29888266]
[1747769026775,2.82420001,2478.4,2478.3,15.49212266]
[1747769027279,2.01587,2479.6,2478.6,5.98918001]
[1747769027475,3.81007,2479.6,2479.0,7.18034001]
[1747769027685,0.8065,2479.1,2479.0,4.01432]
[1747769027976,0.8065,2479.1,2479.0,7.98686001]
[1747769028179,2.8234,2479.1,2479.0,7.98686001]
[1747769028567,2.0169,2479.1,2479.0,7.98686001]
[1747769028771,2.8234,2479.1,2479.0,7.98686001]
[1747769029280,2.0169,2479.1,2479.0,7.98686001]
[1747769029483,2.0169,2479.1,2479.0,7.98688001]
[1747769029484,0.08486477,2479.1,2479.0,7.98688001]
[1747769029784,2.90826477,2479.1,2479.0,3.2078]
[1747769030078,2.90826477,2479.1,2479.0,21.51388001]
[1747769030379,2.90826477,2479.1,2479.0,16.7348]
[1747769030579,2.90826477,2479.1,2479.0,7.18034001]
[1747769030874,2.92093477,2479.1,2479.0,7.18034001]
[1747769031080,2.92093477,2479.1,2479.0,3.2078]
[1747769031477,2.92093477,2479.1,2479.0,7.18034001]
[1747769031785,0.09753477,2479.1,2479.0,7.98688001]
[1747769032082,0.90403477,2479.1,2479.0,7.18034001]
[1747769032476,0.90403477,2479.1,2479.0,20.70534001]
[1747769032877,0.90403477,2479.1,2479.0,7.18034001]
[1747769033178,2.92093477,2479.1,2479.0,20.70534001]
[1747769033574,0.90403477,2479.1,2479.0,20.70534001]
[1747769033978,2.92093477,2479.1,2479.0,7.18034001]
[1747769034182,0.80654,2479.0,2478.9,13.525]
[1747769034377,2.44274,2479.0,2478.9,20.70534001]
[1747769034579,4.459725,2479.0,2478.9,20.70534001]
[1747769034777,0.09753477,2479.1,2479.0,0.80654]
[1747769034976,2.92093477,2479.1,2478.9,3.2078]
[1747769035172,2.92093477,2479.1,2479.0,18.30308001]
[1747769035392,2.92093477,2479.1,2479.0,17.49654001]
[1747769035778,0.90403477,2479.1,2479.0,17.49654001]
[1747769035978,0.80654,2479.0,2478.9,3.2078]
[1747769036176,0.80654,2479.0,2478.9,20.70434001]
[1747769036386,0.80654,2479.0,2478.9,21.51091001]
[1747769036690,0.09753477,2479.1,2479.0,0.80654]
[1747769036879,0.09753477,2479.1,2479.0,6.54818001]
[1747769037081,2.01604,2479.4,2479.0,6.54818001]
[1747769037381,2.01516,2480.5,2479.4,2.01602]
[1747769037579,0.82581411,2480.1,2480.0,3.97254001]
[1747769037780,0.82581411,2480.1,2480.0,17.49554001]
[1747769037981,0.01963411,2480.1,2480.0,17.49554001]
[1747769038177,2.84190411,2480.1,2480.0,17.49554001]
[1747769039082,2.03572411,2480.1,2479.8,0.00605266]
[1747769039386,2.03572411,2480.1,2479.8,13.52905266]
[1747769039387,0.80624,2479.9,2479.8,13.52905266]
[1747769039684,0.80624,2479.9,2479.8,17.50159267]
[1747769039886,2.82249001,2479.9,2479.8,17.50159267]
[1747769040082,0.80624,2479.9,2479.8,3.97859267]
[1747769040284,2.82249001,2479.9,2479.8,3.97859267]
[1747769041283,2.82249001,2479.9,2479.8,0.00605266]
[1747769041585,7.82249001,2479.9,2479.8,3.97859267]
[1747769041785,7.82249001,2479.9,2479.3,0.28359959]
[1747769041786,2.01577,2479.8,2479.3,0.28359959]
[1747769042093,0.80641,2479.4,2479.3,0.28359959]
[1747769042483,2.01666,2479.4,2479.1,1.09007959]
[1747769042683,0.80647,2479.2,2479.1,0.28359959]
[1747769043381,0.80647,2479.2,2479.1,2.30041959]
[1747769043877,0.80647,2479.2,2479.1,2.3394381]
[1747769044289,0.80647,2479.2,2479.1,3.1459381]
[1747769044692,0.89133477,2479.2,2479.1,2.3394381]
[1747769044891,0.08486477,2479.2,2479.1,3.1459381]
[1747769045086,0.08486477,2479.2,2479.1,8.0489381]
[1747769045791,0.08486477,2479.2,2479.1,8.42607807]
[1747769046192,2.90815477,2479.2,2479.1,3.90755807]
[1747769046491,2.90815477,2479.2,2479.1,0.69975807]
[1747769046691,4.53445477,2479.2,2479.1,0.69975807]
[1747769046885,6.25415477,2479.2,2479.1,0.69975807]
[1747769047282,0.80653,2479.1,2478.9,0.00605266]
[1747769047495,2.46053,2479.1,2479.0,0.80651]
[1747769047687,4.47747,2479.1,2479.0,0.80651]
[1747769048095,0.80654,2479.0,2478.9,0.00605266]
[1747769048294,5.66834,2479.0,2478.9,0.00605266]
[1747769048493,12.92076574,2479.0,2478.9,2.66e-06]
[1747769048691,12.92076574,2479.0,2478.5,1e-08]
[1747769048692,0.80667,2478.6,2478.5,1e-08]
[1747769048995,5.687345,2479.0,2478.4,1e-08]
[1747769049293,1.654,2478.7,2478.6,0.80665]
[1747769049693,3.671225,2478.7,2478.6,0.80665]
[1747769050001,3.671225,2478.7,2478.5,3.2078]
[1747769050002,0.80667,2478.6,2478.5,3.2078]
[1747769050186,2.46637,2478.6,2478.5,17.0948]
[1747769050501,4.48368,2478.6,2478.5,3.2078]
[1747769050792,0.8067,2478.5,2478.4,0.00605267]
[1747769050995,2.4664,2478.5,2478.4,0.00605266]
[1747769051193,4.48379,2478.5,2478.4,0.00605266]
[1747769051392,4.77e-06,2479.2,2478.6,4.03324]
[1747769051599,0.80621,2480.0,2479.3,2.01739]
[1747769051797,0.01963411,2480.1,2479.8,6.03147]
[1747769052098,0.82582411,2480.1,2479.8,19.91847]
[1747769052296,1.67933411,2480.1,2479.8,6.3539747]
[1747769052501,3.69550411,2480.1,2479.9,16.71062]
[1747769052995,3.69550411,2480.1,2479.9,14.69323]
[1747769053196,3.69550411,2480.1,2480.0,13.887]
[1747769053197,4.50168411,2480.1,2480.0,13.887]
[1747769053407,4.50168411,2480.1,2480.0,14.2095047]
[1747769053699,9.50168411,2480.1,2480.0,0.3225047]
[1747769054606,0.80624,2479.9,2479.8,0.00605266]
[1747769055105,7.82249001,2479.9,2479.8,0.00605266]
[1747769055303,2.01573,2479.8,2479.4,3.2078]
[1747769055502,0.80637,2479.5,2479.4,3.2078]
[1747769055703,0.80637,2479.6,2479.4,4.01418]
[1747769055896,3.4491,2480.0,2479.6,2.01739]
[1747769056103,0.80627,2479.8,2479.7,15.90339]
[1747769056303,0.80627,2479.8,2479.7,19.11119]
[1747769057609,0.80627,2479.8,2479.7,19.43376958]
[1747769057805,0.80627,2479.8,2479.7,3.53037958]
[1747769058015,2.8226,2479.8,2479.7,14.20857958]
[1747769058304,2.8226,2479.8,2479.7,0.32257958]
[1747769059095,2.8226,2479.8,2479.7,3.53037958]
[1747769059307,2.8226,2479.8,2479.7,3.2078]
[1747769059898,2.90746477,2479.8,2479.7,3.2078]
[1747769063603,3.40746477,2479.8,2479.7,3.2078]
[1747769063900,0.80631,2479.7,2479.6,13.884]
[1747769064097,0.80634,2479.6,2479.5,0.00605266]
[1747769064306,2.41794,2479.6,2479.5,0.00605266]
[1747769064512,4.434435,2479.6,2479.5,0.00605266]
[1747769064708,6.109535,2479.6,2479.5,0.00605266]
[1747769065611,3.691595,2479.6,2479.5,0.00605266]
[1747769065809,3.691595,2479.6,2479.5,1.70075266]
[1747769066104,4.497935,2479.6,2479.5,16.39112266]
[1747769067303,0.58486477,2479.8,2479.7,0.80631]
[1747769067512,0.58486477,2479.8,2479.7,6.0315]
[1747769067913,0.58486477,2479.8,2479.7,7.7262]
[1747769068614,0.58486477,2479.8,2479.7,8.04869473]
[1747769069110,0.58486477,2479.8,2479.7,21.93269473]
[1747769069302,1.39113477,2479.8,2479.7,8.04869473]
[1747769069505,2.28846477,2479.8,2479.7,21.93269473]
[1747769069807,3.09473477,2479.8,2479.7,21.93269473]
[1747769070015,5.11106477,2479.8,2479.7,3.53029473]
[1747769070200,5.11106477,2479.8,2479.7,0.32249473]
[1747769070408,5.11106477,2479.8,2479.7,5.54768473]
[1747769070704,0.58486477,2479.8,2479.7,6.35399473]
[1747769071008,0.58486477,2479.8,2479.7,7.99809473]
[1747769075005,0.58486477,2479.8,2479.7,21.91909473]
[1747769078816,0.58486477,2479.8,2479.7,7.99809473]
[1747769079015,0.58486477,2479.8,2479.7,21.91809473]
[1747769079615,3.40746477,2479.8,2479.7,5.54768473]
[1747769079804,3.40746477,2479.8,2479.7,3.53029473]
[1747769080115,3.40746477,2479.8,2479.7,5.54768473]
[1747769080315,3.40746477,2479.8,2479.7,3.53029473]
[1747769080505,3.40746477,2479.8,2479.7,5.54768473]
[1747769080506,8.40746477,2479.8,2479.7,5.54768473]
[1747769080713,8.40746477,2479.8,2479.7,3.53029473]
[1747769080913,8.40746477,2479.8,2479.7,5.54768473]
[1747769081112,8.40746477,2479.8,2479.7,3.53029473]
[1747769081317,8.40746477,2479.8,2479.7,5.54768473]
[1747769081522,8.40746477,2479.8,2479.7,0.32249473]
[1747769081816,8.40746477,2479.8,2479.7,2.33988473]
[1747769082015,0.80634,2479.6,2479.5,0.00605266]
[1747769082515,0.80634,2479.6,2479.5,2.02344266]
[1747769083113,0.80634,2479.6,2479.5,0.00605266]
[1747769083314,0.80634,2479.6,2479.5,2.02344266]
[1747769083617,0.80634,2479.6,2479.5,0.00605266]
[1747769083809,0.80634,2479.6,2479.5,2.02344266]
[1747769084009,0.80634,2479.6,2479.5,0.00605266]
[1747769084513,0.80634,2479.6,2479.5,2.02344266]
[1747769084514,6.0356442,2479.6,2479.5,2.02344266]
[1747769084716,6.0356442,2479.6,2479.5,0.00605266]
[1747769085814,0.80634,2479.6,2479.5,0.00605266]
[1747769086120,0.80634,2479.6,2479.5,2.02344266]
[1747769086311,0.93489192,2479.6,2479.5,2.02344266]
[1747769086614,0.93489192,2479.6,2479.5,0.00605266]
[1747769086921,2.61579192,2479.6,2479.5,2.02344266]
[1747769087125,2.61579192,2479.6,2479.5,0.00605266]
[1747769087621,2.61579192,2479.6,2479.5,2.82981266]
[1747769087810,2.61579192,2479.6,2479.5,4.43271266]
[1747769088319,2.61579192,2479.6,2479.5,17.07438409]
[1747769088521,4.63228692,2479.6,2479.5,17.07438409]
[1747769088824,2.61579192,2479.6,2479.5,17.07438409]
[1747769089023,2.48724,2479.6,2479.5,17.07438409]
[1747769089526,4.503735,2479.6,2479.5,17.07438409]
[1747769089723,4.503735,2479.6,2479.5,16.75181266]